[Event "FIDE WCCC Open-08 2024"]
[Site "Montesilvano"]
[Date "2024.11.19"]
[Round "5.1"]
[White "Divith Reddy Adulla"]
[Black "Demchenko, Timofei"]
[Result "0-1"]
[ECO "C01"]
[WhiteElo "1784"]
[BlackElo "1969"]
[Annotator "NA RC"]
[PlyCount "80"]
[EventDate "2024.11.18"]
[EventType "swiss"]
[EventCountry "ITA"]
[SourceTitle "playchess.com"]
[Source "ChessBase"]
[SourceQuality "1"]
[TimeControl "5400+30"]

1. e4 {[%emt 0:00:15]} e6 {[%emt 0:00:05]} 2. d4 {[%emt 0:00:03]} d5 {[%emt 0:00:04]} 3. Nc3 {[%emt 0:00:04]} Bb4 {[%emt 0:00:03]} 4. exd5 {[%emt 0:00:12]} exd5 {[%emt 0:00:06]} 5. a3 {[%emt 0:00:07]} Bxc3+ {[%emt 0:00:04]} 6. bxc3 {[%emt 0:00:08]} Ne7 {[%emt 0:00:02]} 7. Bd3 {[%emt 0:00:10]} Bf5 {[%emt 0:02:25]} 8. Qf3 {[%emt 0:02:15]} Bxd3 {[%emt 0:04:35]} 9. cxd3 {[%emt 0:00:05]} Nbc6 {[%emt 0:01:40]} 10. Ne2 {[%emt 0:00:40]} Qd7 {[%emt 0:03:21]} 11. O-O {[%emt 0:00:31]} O-O {[%emt 0:05:12]} 12. Ng3 {[%emt 0:00:04]} f5 {[%emt 0:02:39]} 13. Nh5 {[%emt 0:03:04]} Kh8 {[%emt 0:04:05]} 14. Nf4 {[%emt 0:01:53]} g5 {[%emt 0:06:57]} 15. Nh5 {[%emt 0:00:06]} f4 {[%emt 0:01:15]} 16. h3 {[%emt 0:01:32]} Ng6 {[%emt 0:01:56]} 17. Bd2 {[%emt 0:01:38]} Qf5 {[%emt 0:04:43]} 18. Rfd1 {[%emt 0:01:35]} Rae8 {[%emt 0:01:49]} 19. Re1 {[%emt 0:00:17]} Nce7 {[%emt 0:03:57]} 20. Rad1 {[%emt 0:02:56]} c5 {[%emt 0:06:54]} 21. g4 {[%emt 0:04:26]} Qf7 {[%emt 0:04:56]} 22. dxc5 {[%emt 0:00:56]} Nh4 {[%emt 0:00:49]} 23. Qh1 {[%emt 0:00:09]} Nef5 {[%emt 0:03:43]} 24. Rxe8 {[%emt 0:00:48]} Rxe8 {[%emt 0:00:23]} 25. c4 {[%emt 0:00:56]} Re5 {[%emt 0:09:05]} 26. cxd5 {[%emt 0:00:41]} Nd4 {[%emt 0:00:51]} 27. Kf1 {[%emt 0:01:47]} Ne2 {[%emt 0:05:45]} 28. Re1 {[%emt 0:01:27]} Ng3+ {[%emt 0:00:16]} 29. Nxg3 {[%emt 0:00:24]} fxg3 {[%emt 0:00:09]} 30. f4 {[%emt 0:01:16]} g2+ {[%emt 0:00:19]} 31. Qxg2 {[%emt 0:00:05]} Rxe1+ {[%emt 0:00:07]} 32. Bxe1 {[%emt 0:00:04]} Nxg2 {[%emt 0:00:12]} 33. Bc3+ {[%emt 0:00:04]} Kg8 {[%emt 0:00:10]} 34. Kxg2 {[%emt 0:00:04]} Qxd5+ {[%emt 0:00:08]} 35. Kg1 {[%emt 0:00:04]} Qxc5+ {[%emt 0:00:11]} 36. Kh1 {[%emt 0:00:07]} Qxc3 {[%emt 0:00:07]} 37. Kh2 {[%emt 0:00:03]} gxf4 {[%emt 0:00:08]} 38. g5 {[%emt 0:00:05]} Qd2+ {[%emt 0:00:08]} 39. Kh1 {[%emt 0:00:05]} f3 {[%emt 0:00:06]} 40. g6 {[%emt 0:00:03]} Qg2# {[%emt 0:00:05]} 0-1

[Event "FIDE WCCC Open-08 2024"]
[Site "Montesilvano"]
[Date "2024.11.19"]
[Round "5.2"]
[White "Zhang, Yangming"]
[Black "Li, Aiden Linyuan"]
[Result "0-1"]
[ECO "B13"]
[WhiteElo "1770"]
[BlackElo "1877"]
[Annotator "NA RC"]
[PlyCount "128"]
[EventDate "2024.11.18"]
[EventType "swiss"]
[EventCountry "ITA"]
[SourceTitle "playchess.com"]
[Source "ChessBase"]
[SourceQuality "1"]
[TimeControl "5400+30"]

1. e4 {[%emt 0:00:19]} c6 {[%emt 0:00:06]} 2. d4 {[%emt 0:00:46]} d5 {[%emt 0:00:15]} 3. exd5 {[%emt 0:00:30]} cxd5 {[%emt 0:00:04]} 4. Bd3 {[%emt 0:00:39]} Nc6 {[%emt 0:00:18]} 5. c3 {[%emt 0:00:42]} Qc7 {[%emt 0:00:05]} 6. h3 {[%emt 0:01:27]} Nf6 {[%emt 0:00:06]} 7. Nf3 {[%emt 0:00:25]} g6 {[%emt 0:00:04]} 8. O-O {[%emt 0:01:09]} Bf5 {[%emt 0:00:06]} 9. Re1 {[%emt 0:00:32]} Bxd3 {[%emt 0:00:17]} 10. Qxd3 {[%emt 0:00:14]} Bg7 {[%emt 0:00:08]} 11. Ne5 {[%emt 0:00:22]} Ne4 {[%emt 0:04:30]} 12. f3 {[%emt 0:05:50]} Nc5 {[%emt 0:05:29]} 13. Qb5 {[%emt 0:04:37]} Bxe5 {[%emt 0:01:15]} 14. Rxe5 {[%emt 0:05:07]} Qb6 {[%emt 0:00:26]} 15. Qe2 {[%emt 0:09:25]} Nd3 {[%emt 0:01:44]} 16. Rxe7+ {[%emt 0:02:07]} Nxe7 {[%emt 0:00:24]} 17. Qxd3 {[%emt 0:00:10]} O-O {[%emt 0:00:49]} 18. Nd2 {[%emt 0:05:13]} Nf5 {[%emt 0:10:43]} 19. Nb3 {[%emt 0:01:31]} a5 {[%emt 0:02:19]} 20. Qc2 {[%emt 0:09:12]} Rfe8 {[%emt 0:03:51]} 21. Bf4 {[%emt 0:02:19]} Ne3 {[%emt 0:01:08]} 22. Qf2 {[%emt 0:03:45]} Nc4 {[%emt 0:00:22]} 23. Rb1 {[%emt 0:01:33]} Re7 {[%emt 0:01:11]} 24. Nc5 {[%emt 0:05:32]} Rae8 {[%emt 0:00:38]} 25. Qh4 {[%emt 0:00:21]} Na3 {[%emt 0:08:25]} 26. Bg5 {[%emt 0:02:28]} f6 {[%emt 0:08:43]} 27. Bxf6 {[%emt 0:01:35]} Rf7 {[%emt 0:50:34]} 28. Re1 {[%emt 0:01:41]} Rxe1+ {[%emt 0:00:00]} 29. Qxe1 {[%emt 0:00:08]} Qxf6 {[%emt 0:00:00]} 30. bxa3 {[%emt 0:00:18]} Re7 {[%emt 0:00:00]} 31. Qb1 {[%emt 0:00:40]} b6 {[%emt 0:00:00]} 32. Nd3 {[%emt 0:03:27]} Qf5 {[%emt 0:00:00]} 33. Qb5 {[%emt 0:00:20]} Qg5 {[%emt 0:00:00]} 34. Ne5 {[%emt 0:02:01]} Qe3+ {[%emt 0:00:00]} 35. Kh2 {[%emt 0:00:56]} Qxc3 {[%emt 0:04:00]} 36. Qxd5+ {[%emt 0:00:18]} Kg7 {[%emt 0:00:00]} 37. Qd6 {[%emt 0:31:21]} Qc7 {[%emt 0:00:00]} 38. Qd5 {[%emt 0:00:00]} Re8 {[%emt 0:00:00]} 39. f4 {[%emt 0:00:00]} Rf8 {[%emt 0:00:00]} 40. Qe4 {[%emt 0:00:00]} Qe7 {[%emt 0:00:00]} 41. d5 {[%emt 0:00:00]} Qxa3 {[%emt 0:00:00]} 42. Qd4 {[%emt 0:00:00]} Qc5 {[%emt 0:00:00]} 43. Qa1 {[%emt 0:00:00]} Rxf4 {[%emt 0:00:00]} 44. Nf3+ {[%emt 0:00:00]} Rf6 {[%emt 0:00:00]} 45. Qd1 {[%emt 0:00:00]} Qd6+ {[%emt 0:00:00]} 46. Kh1 {[%emt 0:00:00]} Rf5 {[%emt 0:00:00]} 47. Qd4+ {[%emt 0:00:00]} Kg8 {[%emt 0:00:00]} 48. Qc4 {[%emt 0:00:00]} Rxd5 {[%emt 0:00:00]} 49. Qc8+ {[%emt 0:00:00]} Kg7 {[%emt 0:00:00]} 50. Qc3+ {[%emt 0:00:00]} Qf6 {[%emt 0:00:00]} 51. Qc7+ {[%emt 0:00:00]} Kh8 {[%emt 0:00:00]} 52. Qc1 {[%emt 0:00:00]} Rd8 {[%emt 0:00:00]} 53. Ng5 {[%emt 0:00:00]} Rf8 {[%emt 0:00:00]} 54. Nf3 {[%emt 0:00:18]} b5 {[%emt 0:00:00]} 55. Qc5 {[%emt 0:00:48]} Rd8 {[%emt 0:00:00]} 56. Qc1 {[%emt 0:00:41]} b4 {[%emt 0:00:00]} 57. Ng5 {[%emt 0:00:28]} Qc3 {[%emt 0:00:00]} 58. Qf4 {[%emt 0:00:51]} Re8 {[%emt 0:00:00]} 59. Nf3 {[%emt 0:03:00]} a4 {[%emt 0:00:00]} 60. Qf7 {[%emt 0:00:42]} Qc6 {[%emt 0:00:00]} 61. Qf4 {[%emt 0:01:22]} b3 {[%emt 0:00:00]} 62. Qd4+ {[%emt 0:00:47]} Kg8 {[%emt 0:00:00]} 63. Ne5 {[%emt 0:01:04]} Qc1+ {[%emt 0:00:00]} 64. Kh2 {[%emt 0:00:06]} Qc7 {[%emt 0:00:00]} 0-1

[Event "FIDE WCCC Open-08 2024"]
[Site "Montesilvano"]
[Date "2024.11.19"]
[Round "5.3"]
[White "Sattwik Swain"]
[Black "Morozov, Arkhip"]
[Result "1-0"]
[ECO "C42"]
[WhiteElo "1787"]
[BlackElo "1687"]
[Annotator "NA RC"]
[PlyCount "79"]
[EventDate "2024.11.18"]
[EventType "swiss"]
[EventCountry "ITA"]
[SourceTitle "playchess.com"]
[Source "ChessBase"]
[SourceQuality "1"]
[TimeControl "5400+30"]

1. e4 {[%emt 0:00:02]} e5 {[%emt 0:00:17]} 2. Nf3 {[%emt 0:00:07]} Nf6 {[%emt 0:00:28]} 3. Nxe5 {[%emt 0:00:07]} d6 {[%emt 0:00:19]} 4. Nf3 {[%emt 0:00:10]} Nxe4 {[%emt 0:00:19]} 5. Nc3 {[%emt 0:00:32]} Nxc3 {[%emt 0:00:18]} 6. dxc3 {[%emt 0:00:18]} Be7 {[%emt 0:00:19]} 7. Be3 {[%emt 0:00:31]} Be6 {[%emt 0:00:54]} 8. Qd2 {[%emt 0:01:51]} Nc6 {[%emt 0:02:09]} 9. O-O-O {[%emt 0:02:32]} h6 {[%emt 0:02:50]} 10. Be2 {[%emt 0:01:29]} Qd7 {[%emt 0:03:42]} 11. Kb1 {[%emt 0:00:50]} Bf6 {[%emt 0:04:01]} 12. Rhe1 {[%emt 0:05:37]} a6 {[%emt 0:03:22]} 13. a3 {[%emt 0:09:17]} O-O-O {[%emt 0:05:05]} 14. h3 {[%emt 0:20:02]} Kb8 {[%emt 0:03:21]} 15. Bd3 {[%emt 0:12:12]} Rhe8 {[%emt 0:01:32]} 16. Nd4 {[%emt 0:12:34]} Nxd4 {[%emt 0:01:00]} 17. cxd4 {[%emt 0:01:46]} Bf5 {[%emt 0:02:13]} 18. Qb4 {[%emt 0:04:45]} Bxd3 {[%emt 0:13:14]} 19. Rxd3 {[%emt 0:00:49]} Qb5 {[%emt 0:05:30]} 20. Qxb5 {[%emt 0:05:30]} axb5 {[%emt 0:00:11]} 21. Red1 {[%emt 0:01:41]} d5 {[%emt 0:00:29]} 22. Kc1 {[%emt 0:01:31]} Kc8 {[%emt 0:00:22]} 23. Kd2 {[%emt 0:00:59]} Kd7 {[%emt 0:00:53]} 24. Rb3 {[%emt 0:01:31]} Kc6 {[%emt 0:02:23]} 25. Kc1 {[%emt 0:04:39]} Be7 {[%emt 0:47:49]} 26. Rdd3 {[%emt 0:00:43]} b4 {[%emt 0:00:00]} 27. axb4 {[%emt 0:02:49]} Kb5 {[%emt 0:00:00]} 28. Rdc3 {[%emt 0:00:40]} c6 {[%emt 0:00:00]} 29. Kd1 {[%emt 0:03:44]} Ra8 {[%emt 0:00:00]} 30. Rc5+ {[%emt 0:03:37]} Bxc5 {[%emt 0:00:00]} 31. bxc5+ {[%emt 0:00:08]} Ka6 {[%emt 0:00:00]} 32. Bd2 {[%emt 0:01:25]} Ka7 {[%emt 0:00:00]} 33. Ra3+ {[%emt 0:00:08]} Kb8 {[%emt 0:00:00]} 34. Bf4+ {[%emt 0:00:10]} Kc8 {[%emt 0:00:00]} 35. Rxa8+ {[%emt 0:00:05]} Kd7 {[%emt 0:00:00]} 36. Rxe8 {[%emt 0:00:06]} Kxe8 {[%emt 0:00:00]} 37. Kd2 {[%emt 0:00:05]} Kd7 {[%emt 0:00:00]} 38. Kc3 {[%emt 0:00:06]} Ke6 {[%emt 0:00:00]} 39. f3 {[%emt 0:00:04]} Kf5 {[%emt 0:00:00]} 40. Bg3 {[%emt 0:00:09]} 1-0

[Event "FIDE WCCC Open-08 2024"]
[Site "Montesilvano"]
[Date "2024.11.19"]
[Round "5.4"]
[White "Jia, Zining (Matthew)"]
[Black "Bausys, Benas"]
[Result "1/2-1/2"]
[ECO "B28"]
[WhiteElo "1550"]
[BlackElo "1564"]
[Annotator "NA COMBH"]
[PlyCount "333"]
[EventDate "2024.11.18"]
[EventType "swiss"]
[EventCountry "ITA"]
[SourceTitle "playchess.com"]
[Source "ChessBase"]
[SourceQuality "1"]
[TimeControl "5400+30"]

1. e4 {[%emt 0:00:02]} c5 {[%emt 0:00:08]} 2. Nf3 {[%emt 0:00:04]} a6 {[%emt 0:00:06]} 3. c3 {[%emt 0:00:31]} e6 {[%emt 0:01:23]} 4. d4 {[%emt 0:00:05]} cxd4 {[%emt 0:00:05]} 5. cxd4 {[%emt 0:00:07]} Nf6 {[%emt 0:00:15]} 6. e5 {[%emt 0:00:27]} Nd5 {[%emt 0:00:32]} 7. a3 {[%emt 0:00:09]} d6 {[%emt 0:00:09]} 8. Bd3 {[%emt 0:00:10]} Nc6 {[%emt 0:01:59]} 9. O-O {[%emt 0:01:15]} Be7 {[%emt 0:06:23]} 10. Re1 {[%emt 0:03:27]} dxe5 {[%emt 0:08:37]} 11. dxe5 {[%emt 0:00:13]} O-O {[%emt 0:03:05]} 12. Qe2 {[%emt 0:02:43]} f5 {[%emt 0:00:49]} 13. h3 {[%emt 0:00:42]} b5 {[%emt 0:00:43]} 14. Rd1 {[%emt 0:01:38]} Bb7 {[%emt 0:01:54]} 15. Bd2 {[%emt 0:03:26]} Qb6 {[%emt 0:04:46]} 16. Nc3 {[%emt 0:00:27]} Na5 {[%emt 0:02:48]} 17. Nxd5 {[%emt 0:02:12]} Bxd5 {[%emt 0:01:04]} 18. Bxa5 {[%emt 0:01:54]} Qxa5 {[%emt 0:01:01]} 19. Rac1 {[%emt 0:01:54]} Rad8 {[%emt 0:06:51]} 20. Nd2 {[%emt 0:02:52]} Bg5 {[%emt 0:04:04]} 21. Rc3 {[%emt 0:01:09]} b4 {[%emt 0:03:06]} 22. Nb3 {[%emt 0:04:51]} Qb6 {[%emt 0:01:51]} 23. axb4 {[%emt 0:02:47]} Qxb4 {[%emt 0:00:59]} 24. Nc5 {[%emt 0:00:51]} a5 {[%emt 0:03:00]} 25. Na6 {[%emt 0:04:07]} Qb6 {[%emt 0:02:47]} 26. Nc7 {[%emt 0:01:03]} Bb7 {[%emt 0:11:29]} 27. Bc4 {[%emt 0:03:28]} Bc8 {[%emt 0:01:33]} 28. Rxd8 {[%emt 0:02:16]} Rxd8 {[%emt 0:06:16]} 29. Qc2 {[%emt 0:05:11]} Kh8 {[%emt 0:00:57]} 30. Bd3 {[%emt 0:02:25]} Bd7 {[%emt 0:07:22]} 31. Na6 {[%emt 0:03:51]} Bh4 {[%emt 0:01:38]} 32. Nc5 {[%emt 0:00:20]} Be8 {[%emt 0:01:57]} 33. Rb3 {[%emt 0:03:22]} Qc6 {[%emt 0:02:28]} 34. Bb5 {[%emt 0:01:04]} Qc7 {[%emt 0:00:39]} 35. Bxe8 {[%emt 0:00:21]} Rxe8 {[%emt 0:00:11]} 36. Qc3 {[%emt 0:03:25]} Qc6 {[%emt 0:03:15]} 37. Ra3 {[%emt 0:44:11]} Rc8 {[%emt 0:04:52]} 38. Na4 {[%emt 0:00:00]} Qd7 {[%emt 0:01:35]} 39. Qd3 {[%emt 0:00:00]} Rc1+ {[%emt 0:01:02]} 40. Kh2 {[%emt 0:00:00]} Qc7 {[%emt 0:00:24]} 41. Qe3 {[%emt 0:00:00]} Rc4 {[%emt 0:02:40]} 42. Rc3 {[%emt 0:00:00]} h6 {[%emt 0:01:20]} 43. b3 {[%emt 0:00:00]} Rxc3 {[%emt 0:00:20]} 44. Qxc3 {[%emt 0:00:00]} Qxc3 {[%emt 0:00:16]} 45. Nxc3 {[%emt 0:00:00]} Bxf2 {[%emt 0:00:21]} 46. Ne2 {[%emt 0:00:00]} Bb6 {[%emt 0:00:31]} 47. Nf4 {[%emt 0:00:00]} Bc7 {[%emt 0:00:29]} 48. Nxe6 {[%emt 0:00:00]} Bxe5+ {[%emt 0:04:30]} 49. g3 {[%emt 0:00:00]} Kg8 {[%emt 0:00:00]} 50. Kg2 {[%emt 0:00:00]} Kf7 {[%emt 0:00:00]} 51. Nd8+ {[%emt 0:00:00]} Kf6 {[%emt 0:00:00]} 52. Kf3 {[%emt 0:00:00]} g5 {[%emt 0:00:00]} 53. Nb7 {[%emt 0:00:00]} Bc7 {[%emt 0:00:00]} 54. Nc5 {[%emt 0:00:00]} h5 {[%emt 0:00:00]} 55. Nd3 {[%emt 0:00:00]} g4+ {[%emt 0:00:00]} 56. hxg4 {[%emt 0:00:00]} hxg4+ {[%emt 0:00:00]} 57. Kg2 {[%emt 0:00:00]} f4 {[%emt 0:01:21]} 58. Nxf4 {[%emt 0:00:00]} Kf5 {[%emt 0:00:32]} 59. Nd3 {[%emt 0:00:00]} Ke4 {[%emt 0:00:51]} 60. Nf2+ {[%emt 0:00:00]} Kd4 {[%emt 0:01:08]} 61. Nxg4 {[%emt 0:00:00]} Kc3 {[%emt 0:00:08]} 62. Nf2 {[%emt 0:00:00]} Kxb3 {[%emt 0:00:06]} 63. g4 {[%emt 0:00:00]} a4 {[%emt 0:00:30]} 64. Kf3 {[%emt 0:00:00]} Be5 {[%emt 0:01:22]} 65. Nd3 {[%emt 0:00:00]} Bg7 {[%emt 0:01:31]} 66. Ke2 {[%emt 0:00:00]} a3 {[%emt 0:00:32]} 67. g5 {[%emt 0:00:00]} Bb2 {[%emt 0:00:57]} 68. g6 {[%emt 0:00:00]} a2 {[%emt 0:00:24]} 69. g7 {[%emt 0:00:00]} a1=Q {[%emt 0:01:08]} 70. g8=Q+ {[%emt 0:00:00]} Kc3 {[%emt 0:00:00]} 71. Qc8+ {[%emt 0:00:00]} Kb3 {[%emt 0:00:19]} 72. Nc5+ {[%emt 0:00:00]} Kb4 {[%emt 0:00:33]} 73. Nd3+ {[%emt 0:00:00]} Kb3 {[%emt 0:00:08]} 74. Qg8+ {[%emt 0:00:00]} Kc3 {[%emt 0:00:19]} 75. Qg7+ {[%emt 0:00:00]} Kb3 {[%emt 0:00:10]} 76. Qb7+ {[%emt 0:00:00]} Kc3 {[%emt 0:00:29]} 77. Qb4+ {[%emt 0:00:00]} Kc2 {[%emt 0:00:12]} 78. Ne1+ {[%emt 0:00:00]} Kb1 {[%emt 0:00:16]} 79. Qe4+ {[%emt 0:00:00]} Ka2 {[%emt 0:00:14]} 80. Qc4+ {[%emt 0:00:00]} Kb1 {[%emt 0:00:16]} 81. Qc2+ {[%emt 0:00:00]} Ka2 {[%emt 0:00:10]} 82. Nd3 {[%emt 0:00:00]} Ka3 {[%emt 0:01:03]} 83. Nc5 {[%emt 0:00:00]} Ka2 {[%emt 0:00:46]} 84. Qc4+ {[%emt 0:00:00]} Kb1 {[%emt 0:00:28]} 85. Qd3+ {[%emt 0:00:00]} Ka2 {[%emt 0:00:18]} 86. Qb3+ {[%emt 0:00:00]} Kb1 {[%emt 0:00:10]} 87. Na4 {[%emt 0:00:00]} Qa3 {[%emt 0:00:52]} 88. Nc3+ {[%emt 0:00:59]} Ka1 {[%emt 0:00:13]} 89. Qd1+ {[%emt 0:00:11]} Bc1 {[%emt 0:00:07]} 90. Kd3 {[%emt 0:02:17]} Qd6+ {[%emt 0:02:55]} 91. Kc2 {[%emt 0:00:22]} Qxd1+ {[%emt 0:00:30]} 92. Nxd1 {[%emt 0:00:11]} Bb2 {[%emt 0:00:17]} 93. Kb3 {[%emt 0:00:22]} Bc3 {[%emt 0:00:13]} 94. Ne3 {[%emt 0:00:14]} Kb1 {[%emt 0:00:16]} 95. Nc4 {[%emt 0:00:08]} Kc1 {[%emt 0:00:12]} 96. Na3 {[%emt 0:00:15]} Kd2 {[%emt 0:00:05]} 97. Nb1+ {[%emt 0:00:06]} Kd3 {[%emt 0:00:10]} 98. Na3 {[%emt 0:00:09]} Bb2 {[%emt 0:00:09]} 99. Nc4 {[%emt 0:00:06]} Ba3 {[%emt 0:00:09]} 100. Ne5+ {[%emt 0:00:10]} Ke4 {[%emt 0:00:08]} 101. Ng4 {[%emt 0:00:07]} Bc5 {[%emt 0:00:09]} 102. Nh2 {[%emt 0:00:16]} Ke3 {[%emt 0:00:10]} 103. Nf1+ {[%emt 0:00:54]} Ke2 {[%emt 0:00:09]} 104. Ng3+ {[%emt 0:00:04]} Kf3 {[%emt 0:00:06]} 105. Nf5 {[%emt 0:00:05]} Bd4 {[%emt 0:00:06]} 106. Nd6 {[%emt 0:00:06]} Bc3 {[%emt 0:00:07]} 107. Nf7 {[%emt 0:00:09]} Be5 {[%emt 0:00:09]} 108. Ng5+ {[%emt 0:00:08]} Kg4 {[%emt 0:00:06]} 109. Nf7 {[%emt 0:00:06]} Bc3 {[%emt 0:00:08]} 110. Nd6 {[%emt 0:00:06]} Bb4 {[%emt 0:00:07]} 111. Nb7 {[%emt 0:00:07]} Bc5 {[%emt 0:00:08]} 112. Nd8 {[%emt 0:00:06]} Bb4 {[%emt 0:00:08]} 113. Ne6 {[%emt 0:00:07]} Bc5 {[%emt 0:00:05]} 114. Nc7 {[%emt 0:00:37]} Bb4 {[%emt 0:00:05]} 115. Nd5 {[%emt 0:00:22]} Bc3 {[%emt 0:00:08]} 116. Ne3+ {[%emt 0:01:39]} Kf3 {[%emt 0:00:05]} 117. Nc4 {[%emt 0:00:06]} Bd4 {[%emt 0:00:09]} 118. Nd6 {[%emt 0:00:05]} Bc3 {[%emt 0:00:07]} 119. Nb5 {[%emt 0:00:05]} Bd4 {[%emt 0:00:06]} 120. Na3 {[%emt 0:00:06]} Bb2 {[%emt 0:00:08]} 121. Nb5 {[%emt 0:00:03]} Bd4 {[%emt 0:00:41]} 122. Nd6 {[%emt 0:00:07]} Bb2 {[%emt 0:00:06]} 123. Kc2 {[%emt 0:00:05]} Bc3 {[%emt 0:00:07]} 124. Kd3 {[%emt 0:00:07]} Bd4 {[%emt 0:00:05]} 125. Nf7 {[%emt 0:00:06]} Be5 {[%emt 0:00:06]} 126. Nh6 {[%emt 0:00:08]} Bd4 {[%emt 0:00:09]} 127. Nf5 {[%emt 0:00:08]} Be3 {[%emt 0:00:07]} 128. Nd6 {[%emt 0:00:08]} Bd4 {[%emt 0:00:06]} 129. Ne4 {[%emt 0:00:07]} Bc3 {[%emt 0:00:03]} 130. Ng5+ {[%emt 0:00:10]} Kg4 {[%emt 0:00:06]} 131. Ne6 {[%emt 0:00:07]} Bd4 {[%emt 0:00:05]} 132. Kc4 {[%emt 0:00:12]} Bc3 {[%emt 0:00:08]} 133. Kd5 {[%emt 0:00:06]} Be5 {[%emt 0:00:06]} 134. Kc6 {[%emt 0:00:07]} Bd6 {[%emt 0:00:03]} 135. Kd7 {[%emt 0:00:07]} Bf8 {[%emt 0:00:06]} 136. Ke8 {[%emt 0:00:06]} Be7 {[%emt 0:00:08]} 137. Kf7 {[%emt 0:00:06]} Bf6 {[%emt 0:00:07]} 138. Kg6 {[%emt 0:00:19]} Bg5 {[%emt 0:00:08]} 139. Kf7 {[%emt 0:00:12]} Bd8 {[%emt 0:00:05]} 140. Kg6 {[%emt 0:00:07]} Bg5 {[%emt 0:00:05]} 141. Kg7 {[%emt 0:00:09]} Bf6+ {[%emt 0:00:08]} 142. Kh7 {[%emt 0:00:06]} Bg7 {[%emt 0:00:07]} 143. Kg6 {[%emt 0:00:05]} Bf6 {[%emt 0:00:08]} 144. Kf7 {[%emt 0:00:05]} Kf5 {[%emt 0:00:07]} 145. Nc7 {[%emt 0:00:06]} Be5 {[%emt 0:00:04]} 146. Ne6 {[%emt 0:00:07]} Bf6 {[%emt 0:00:07]} 147. Nc5 {[%emt 0:00:06]} Be7 {[%emt 0:00:04]} 148. Nd3 {[%emt 0:00:06]} Bc5 {[%emt 0:00:08]} 149. Nb2 {[%emt 0:00:08]} Ke4 {[%emt 0:00:06]} 150. Nc4 {[%emt 0:00:10]} Bd6 {[%emt 0:00:05]} 151. Nb6 {[%emt 0:00:08]} Be7 {[%emt 0:00:07]} 152. Nd7 {[%emt 0:00:07]} Bc5 {[%emt 0:00:06]} 153. Nf6+ {[%emt 0:00:06]} Kf5 {[%emt 0:00:04]} 154. Nd7 {[%emt 0:00:12]} Bf8 {[%emt 0:00:06]} 155. Nb6 {[%emt 0:00:09]} Be7 {[%emt 0:00:04]} 156. Nc4 {[%emt 0:00:06]} Bd6 {[%emt 0:00:05]} 157. Ne3+ {[%emt 0:00:05]} Ke4 {[%emt 0:00:06]} 158. Ng4 {[%emt 0:00:06]} Be5 {[%emt 0:00:05]} 159. Ke6 {[%emt 0:00:06]} Bf6 {[%emt 0:00:08]} 160. Kf7 {[%emt 0:00:25]} Be7 {[%emt 0:00:12]} 161. Ke6 {[%emt 0:00:05]} Bf6 {[%emt 0:00:06]} 162. Nh6 {[%emt 0:00:09]} Be7 {[%emt 0:00:08]} 163. Nf7 {[%emt 0:00:05]} Bf6 {[%emt 0:00:06]} 164. Nd6+ {[%emt 0:00:04]} Kd3 {[%emt 0:00:10]} 165. Nf5 {[%emt 0:00:06]} Ke4 {[%emt 0:00:46]} 166. Nd6+ {[%emt 0:00:04]} Kd3 {[%emt 0:00:06]} 167. Kd5 {[%emt 0:00:07]} 1/2-1/2

[Event "FIDE WCCC Open-08 2024"]
[Site "Montesilvano"]
[Date "2024.11.19"]
[Round "5.5"]
[White "Hu, Junyan"]
[Black "Su, Milo"]
[Result "1/2-1/2"]
[ECO "B24"]
[WhiteElo "1924"]
[BlackElo "1696"]
[Annotator "NA RC"]
[PlyCount "144"]
[EventDate "2024.11.18"]
[EventType "swiss"]
[EventCountry "ITA"]
[SourceTitle "playchess.com"]
[Source "ChessBase"]
[SourceQuality "1"]
[TimeControl "5400+30"]

1. e4 {[%emt 0:00:02]} c5 {[%emt 0:00:05]} 2. Nf3 {[%emt 0:00:05]} Nc6 {[%emt 0:00:11]} 3. d4 {[%emt 0:00:05]} cxd4 {[%emt 0:00:07]} 4. Nxd4 {[%emt 0:00:02]} Nf6 {[%emt 0:00:09]} 5. Nc3 {[%emt 0:00:03]} e6 {[%emt 0:00:06]} 6. g3 {[%emt 0:00:26]} d5 {[%emt 0:00:07]} 7. exd5 {[%emt 0:00:19]} exd5 {[%emt 0:00:03]} 8. Bg2 {[%emt 0:01:57]} Bg4 {[%emt 0:00:16]} 9. f3 {[%emt 0:00:13]} Bd7 {[%emt 0:00:09]} 10. O-O {[%emt 0:00:58]} Be7 {[%emt 0:00:12]} 11. Be3 {[%emt 0:00:36]} O-O {[%emt 0:00:44]} 12. Bf2 {[%emt 0:02:33]} Rc8 {[%emt 0:01:41]} 13. Qd2 {[%emt 0:05:55]} Na5 {[%emt 0:02:04]} 14. Rad1 {[%emt 0:06:36]} Nc4 {[%emt 0:00:37]} 15. Qc1 {[%emt 0:00:26]} Bb4 {[%emt 0:02:50]} 16. Nce2 {[%emt 0:00:54]} Re8 {[%emt 0:01:41]} 17. a3 {[%emt 0:03:23]} Bc5 {[%emt 0:01:58]} 18. Nc3 {[%emt 0:04:36]} Bb6 {[%emt 0:02:07]} 19. Rfe1 {[%emt 0:03:42]} h6 {[%emt 0:14:29]} 20. Rxe8+ {[%emt 0:03:55]} Bxe8 {[%emt 0:00:32]} 21. Bh3 {[%emt 0:08:03]} Bd7 {[%emt 0:00:58]} 22. Bxd7 {[%emt 0:00:45]} Qxd7 {[%emt 0:01:06]} 23. Kg2 {[%emt 0:01:05]} Nxa3 {[%emt 0:05:37]} 24. Nxd5 {[%emt 0:00:55]} Nxd5 {[%emt 0:01:40]} 25. bxa3 {[%emt 0:00:34]} Rd8 {[%emt 0:05:01]} 26. Rd3 {[%emt 0:01:45]} Bc7 {[%emt 0:05:35]} 27. Qd2 {[%emt 0:01:14]} h5 {[%emt 0:08:26]} 28. Ne2 {[%emt 0:00:30]} Be5 {[%emt 0:09:36]} 29. Kg1 {[%emt 0:02:30]} Qb5 {[%emt 0:03:18]} 30. Bd4 {[%emt 0:04:42]} Bxd4+ {[%emt 0:00:49]} 31. Rxd4 {[%emt 0:01:55]} Re8 {[%emt 0:01:29]} 32. Rxd5 {[%emt 0:00:42]} Qxe2 {[%emt 0:00:19]} 33. Qxe2 {[%emt 0:00:04]} Rxe2 {[%emt 0:00:06]} 34. Rd8+ {[%emt 0:00:04]} Kh7 {[%emt 0:00:05]} 35. Rd7 {[%emt 0:00:17]} Rxc2 {[%emt 0:00:17]} 36. Rxb7 {[%emt 0:00:06]} Rc3 {[%emt 0:00:21]} 37. Rxa7 {[%emt 0:01:02]} Rxf3 {[%emt 0:00:06]} 38. Kg2 {[%emt 0:00:06]} Rb3 {[%emt 0:00:07]} 39. a4 {[%emt 0:00:44]} Ra3 {[%emt 0:00:07]} 40. a5 {[%emt 0:00:13]} Ra2+ {[%emt 0:00:32]} 41. Kf3 {[%emt 0:00:48]} Ra1 {[%emt 0:00:52]} 42. a6 {[%emt 0:00:09]} f6 {[%emt 0:00:36]} 43. h4 {[%emt 0:00:58]} Ra3+ {[%emt 0:00:10]} 44. Kg2 {[%emt 0:00:40]} Ra1 {[%emt 0:00:06]} 45. Ra8 {[%emt 0:00:16]} Ra2+ {[%emt 0:00:11]} 46. Kh3 {[%emt 0:00:20]} Ra1 {[%emt 0:00:41]} 47. a7 {[%emt 0:00:31]} Ra2 {[%emt 0:00:08]} 48. Rd8 {[%emt 0:01:20]} Rxa7 {[%emt 0:00:08]} 49. Rd5 {[%emt 0:00:04]} Kh6 {[%emt 0:00:16]} 50. Rd6 {[%emt 0:00:15]} Kg6 {[%emt 0:00:13]} 51. Rb6 {[%emt 0:00:09]} Ra5 {[%emt 0:00:54]} 52. Rc6 {[%emt 0:00:24]} Kf5 {[%emt 0:00:19]} 53. Rc1 {[%emt 0:00:28]} Ra3 {[%emt 0:00:37]} 54. Rc5+ {[%emt 0:00:09]} Kg6 {[%emt 0:00:05]} 55. Rb5 {[%emt 0:00:14]} Re3 {[%emt 0:00:19]} 56. Ra5 {[%emt 0:00:25]} Re2 {[%emt 0:00:10]} 57. Rb5 {[%emt 0:00:18]} Re3 {[%emt 0:00:33]} 58. Ra5 {[%emt 0:00:03]} Re4 {[%emt 0:00:22]} 59. Ra1 {[%emt 0:00:23]} Kf5 {[%emt 0:00:10]} 60. Rf1+ {[%emt 0:00:29]} Ke5 {[%emt 0:00:04]} 61. Ra1 {[%emt 0:00:05]} Rd4 {[%emt 0:00:42]} 62. Re1+ {[%emt 0:00:27]} Kd5 {[%emt 0:00:16]} 63. Re7 {[%emt 0:02:14]} g5 {[%emt 0:00:20]} 64. hxg5 {[%emt 0:00:04]} fxg5 {[%emt 0:00:05]} 65. Rg7 {[%emt 0:00:11]} Rg4 {[%emt 0:00:26]} 66. Rh7 {[%emt 0:00:07]} Ke4 {[%emt 0:00:21]} 67. Ra7 {[%emt 0:00:45]} Kf5 {[%emt 0:00:18]} 68. Ra5+ {[%emt 0:00:03]} Ke4 {[%emt 0:00:18]} 69. Ra4+ {[%emt 0:00:14]} Kf5 {[%emt 0:00:05]} 70. Ra5+ {[%emt 0:00:11]} Ke4 {[%emt 0:00:06]} 71. Ra4+ {[%emt 0:00:28]} Kf5 {[%emt 0:00:06]} 72. Ra5+ {[%emt 0:00:05]} Ke4 {[%emt 0:00:04]} 1/2-1/2